[Event "Early Titled Tuesday Blitz | February 8 2022"]
[White "Maze, Sebastien"]
[Black "Bychkov, Vladimir"]
[WhiteFideId "613762"]
[BlackFideId "24151513"]
[WhiteElo "2462"]
[BlackElo "2253"]
[Result "1-0"]
[Round "03"]
[TimeControl "180+1"]
[Date "2022.02.08"]
[WhiteClock "0:01:46"]
[BlackClock "0:00:20"]

1. e4 {[%clk 0:03:00]}  c6 {[%clk 0:02:59]} 2. Nf3 {[%clk 0:03:00]}  d5 {[%clk 0:03:00]} 3. Nc3 {[%clk 0:03:00]}  dxe4 {[%clk 0:03:00]} 4. Nxe4 {[%clk 0:02:57]}  Nf6 {[%clk 0:03:01]} 5. Qe2 {[%clk 0:02:55]}  Nxe4 {[%clk 0:02:59]} 6. Qxe4 {[%clk 0:02:54]}  Qd5 {[%clk 0:03:00]} 7. Qe3 {[%clk 0:02:52]}  Qe6 {[%clk 0:02:56]} 8. b3 {[%clk 0:02:51]}  Qxe3+ {[%clk 0:02:51]} 9. fxe3 {[%clk 0:02:50]}  a5 {[%clk 0:02:50]} 10. a4 {[%clk 0:02:49]}  Na6 {[%clk 0:02:50]} 11. Bb2 {[%clk 0:02:49]}  Nb4 {[%clk 0:02:50]} 12. O-O-O {[%clk 0:02:49]}  Bf5 {[%clk 0:02:50]} 13. d3 {[%clk 0:02:48]}  O-O-O {[%clk 0:02:45]} 14. Be2 {[%clk 0:02:46]}  f6 {[%clk 0:02:43]} 15. Rhf1 {[%clk 0:02:46]}  Bd7 {[%clk 0:02:39]} 16. Nh4 {[%clk 0:02:45]}  e5 {[%clk 0:02:38]} 17. Nf5 {[%clk 0:02:45]}  Kc7 {[%clk 0:02:34]} 18. g4 {[%clk 0:02:45]}  Be6 {[%clk 0:02:33]} 19. h4 {[%clk 0:02:43]}  g6 {[%clk 0:02:30]} 20. Ng3 {[%clk 0:02:42]}  Bg7 {[%clk 0:02:28]} 21. Ne4 {[%clk 0:02:37]}  Rhf8 {[%clk 0:02:26]} 22. Nxf6 {[%clk 0:02:37]}  Kd6 {[%clk 0:01:51]} 23. Ne4+ {[%clk 0:02:35]}  Ke7 {[%clk 0:01:51]} 24. g5 {[%clk 0:02:29]}  Nd5 {[%clk 0:01:50]} 25. Kd2 {[%clk 0:02:28]}  b6 {[%clk 0:01:46]} 26. Rxf8 {[%clk 0:02:24]}  Rxf8 {[%clk 0:01:46]} 27. Rf1 {[%clk 0:02:25]}  Rxf1 {[%clk 0:01:46]} 28. Bxf1 {[%clk 0:02:25]}  c5 {[%clk 0:01:46]} 29. Bg2 {[%clk 0:02:23]}  h6 {[%clk 0:01:42]} 30. Ke2 {[%clk 0:02:22]}  hxg5 {[%clk 0:01:40]} 31. Nxg5 {[%clk 0:02:22]}  Bg8 {[%clk 0:01:39]} 32. c4 {[%clk 0:02:20]}  Nc7 {[%clk 0:01:33]} 33. Be4 {[%clk 0:02:20]}  Bf7 {[%clk 0:01:30]} 34. Nxf7 {[%clk 0:02:17]}  Kxf7 {[%clk 0:01:30]} 35. Kf3 {[%clk 0:02:18]}  Kf6 {[%clk 0:01:28]} 36. Bd5 {[%clk 0:02:13]}  Ke7 {[%clk 0:01:22]} 37. Ke4 {[%clk 0:02:11]}  Kd6 {[%clk 0:01:18]} 38. Bf7 {[%clk 0:02:08]}  Bf6 {[%clk 0:01:15]} 39. Bxg6 {[%clk 0:02:06]}  Bxh4 {[%clk 0:01:16]} 40. Bxe5+ {[%clk 0:02:06]}  Kc6 {[%clk 0:01:16]} 41. Bf7 {[%clk 0:02:03]}  Bf2 {[%clk 0:00:25]} 42. d4 {[%clk 0:02:03]}  cxd4 {[%clk 0:00:25]} 43. exd4 {[%clk 0:02:04]}  Kd7 {[%clk 0:00:24]} 44. d5 {[%clk 0:02:03]}  Bc5 {[%clk 0:00:23]} 45. Bh5 {[%clk 0:02:00]}  Bd6 {[%clk 0:00:22]} 46. Bg4+ {[%clk 0:02:00]}  Ke7 {[%clk 0:00:23]} 47. Bd4 {[%clk 0:01:59]}  Bc5 {[%clk 0:00:23]} 48. Bc3 {[%clk 0:01:55]}  Bb4 {[%clk 0:00:23]} 49. Bxb4+ {[%clk 0:01:51]}  axb4 {[%clk 0:00:24]} 50. Ke5 {[%clk 0:01:51]}  Na6 {[%clk 0:00:20]} 51. d6+ {[%clk 0:01:51]}  Kd8 {[%clk 0:00:20]} 52. Kd5 {[%clk 0:01:48]}  Nc5 {[%clk 0:00:21]} 53. Kc6 {[%clk 0:01:48]}  Nxb3 {[%clk 0:00:22]} 54. Kxb6 {[%clk 0:01:47]}  Nd2 {[%clk 0:00:21]} 55. c5 {[%clk 0:01:46]}  Nc4+ {[%clk 0:00:21]} 56. Kb5 {[%clk 0:01:45]}  Ne5 {[%clk 0:00:20]} 57. Bf5 {[%clk 0:01:45]}  b3 {[%clk 0:00:20]} 58. c6 {[%clk 0:01:46]} 1-0


[Site "https://www.chess.com"]

[Event "Early Titled Tuesday Blitz | February 8 2022"]
[White "Mekhitarian, Krikor Sevag"]
[Black "Khachiyan, Melikset"]
[WhiteFideId "2107660"]
[BlackFideId "13300512"]
[WhiteElo "2598"]
[BlackElo "2484"]
[Result "0-1"]
[Round "03"]
[TimeControl "180+1"]
[Date "2022.02.08"]
[WhiteClock "0:00:08"]
[BlackClock "0:00:12"]

1. e4 {[%clk 0:03:00]}  e5 {[%clk 0:02:44]} 2. Bc4 {[%clk 0:02:58]}  Nf6 {[%clk 0:02:44]} 3. d3 {[%clk 0:02:58]}  Nc6 {[%clk 0:02:43]} 4. Nc3 {[%clk 0:02:58]}  Bb4 {[%clk 0:02:42]} 5. Nf3 {[%clk 0:02:59]}  d5 {[%clk 0:02:41]} 6. exd5 {[%clk 0:02:59]}  Nxd5 {[%clk 0:02:42]} 7. Bd2 {[%clk 0:02:53]}  Bxc3 {[%clk 0:02:42]} 8. bxc3 {[%clk 0:02:53]}  O-O {[%clk 0:02:40]} 9. O-O {[%clk 0:02:53]}  Re8 {[%clk 0:02:38]} 10. Re1 {[%clk 0:02:51]}  f6 {[%clk 0:02:38]} 11. Bb3 {[%clk 0:02:27]}  Kh8 {[%clk 0:02:30]} 12. Nh4 {[%clk 0:02:25]}  Be6 {[%clk 0:02:22]} 13. Qh5 {[%clk 0:02:24]}  Qd7 {[%clk 0:02:18]} 14. h3 {[%clk 0:02:21]}  Bf7 {[%clk 0:02:08]} 15. Qg4 {[%clk 0:02:18]}  Qxg4 {[%clk 0:02:07]} 16. hxg4 {[%clk 0:02:19]}  Rad8 {[%clk 0:02:03]} 17. g5 {[%clk 0:02:14]}  Kg8 {[%clk 0:01:56]} 18. gxf6 {[%clk 0:02:11]}  Nxf6 {[%clk 0:01:53]} 19. f3 {[%clk 0:01:50]}  e4 {[%clk 0:01:36]} 20. fxe4 {[%clk 0:01:47]}  Nxe4 {[%clk 0:01:36]} 21. Bf4 {[%clk 0:01:47]}  Nxc3 {[%clk 0:01:32]} 22. Bxc7 {[%clk 0:01:46]}  Rc8 {[%clk 0:01:24]} 23. Bd6 {[%clk 0:01:04]}  Nd4 {[%clk 0:01:21]} 24. Bb4 {[%clk 0:00:36]}  Nce2+ {[%clk 0:01:13]} 25. Kf2 {[%clk 0:00:32]}  Nxc2 {[%clk 0:00:52]} 26. Bxc2 {[%clk 0:00:20]}  Rxc2 {[%clk 0:00:53]} 27. Kf3 {[%clk 0:00:20]}  Bd5+ {[%clk 0:00:51]} 28. Kg4 {[%clk 0:00:20]}  Re3 {[%clk 0:00:42]} 29. Nf5 {[%clk 0:00:18]}  Be6 {[%clk 0:00:36]} 30. Kg5 {[%clk 0:00:11]}  Re5 {[%clk 0:00:32]} 31. g4 {[%clk 0:00:11]}  Kf7 {[%clk 0:00:21]} 32. Kh4 {[%clk 0:00:03]}  Bxf5 {[%clk 0:00:21]} 33. gxf5 {[%clk 0:00:03]}  Rxf5 {[%clk 0:00:21]} 34. Rf1 {[%clk 0:00:02]}  Rxf1 {[%clk 0:00:19]} 35. Rxf1+ {[%clk 0:00:03]}  Ke6 {[%clk 0:00:19]} 36. a3 {[%clk 0:00:02]}  b6 {[%clk 0:00:19]} 37. Bf8 {[%clk 0:00:02]}  g6 {[%clk 0:00:18]} 38. Bg7 {[%clk 0:00:02]}  a5 {[%clk 0:00:18]} 39. Rf6+ {[%clk 0:00:02]}  Kd7 {[%clk 0:00:17]} 40. Rxb6 {[%clk 0:00:03]}  Nd4 {[%clk 0:00:17]} 41. Bxd4 {[%clk 0:00:03]}  Rd2 {[%clk 0:00:16]} 42. Rb3 {[%clk 0:00:03]}  Kc6 {[%clk 0:00:15]} 43. Rc3+ {[%clk 0:00:03]}  Kd5 {[%clk 0:00:16]} 44. Be3 {[%clk 0:00:03]}  Re2 {[%clk 0:00:16]} 45. Bg1 {[%clk 0:00:02]}  h6 {[%clk 0:00:15]} 46. Bc5 {[%clk 0:00:02]}  g5+ {[%clk 0:00:13]} 47. Kg3 {[%clk 0:00:03]}  h5 {[%clk 0:00:13]} 48. d4 {[%clk 0:00:03]}  Ke4 {[%clk 0:00:11]} 49. Rc1 {[%clk 0:00:03]}  Re3+ {[%clk 0:00:11]} 50. Kf2 {[%clk 0:00:03]}  g4 {[%clk 0:00:10]} 51. Re1 {[%clk 0:00:02]}  g3+ {[%clk 0:00:11]} 52. Kf1 {[%clk 0:00:03]}  Rxe1+ {[%clk 0:00:11]} 53. Kxe1 {[%clk 0:00:03]}  Kf3 {[%clk 0:00:06]} 54. Kf1 {[%clk 0:00:02]}  h4 {[%clk 0:00:07]} 55. Kg1 {[%clk 0:00:01]}  h3 {[%clk 0:00:08]} 56. Bd6 {[%clk 0:00:02]}  h2+ {[%clk 0:00:06]} 57. Kh1 {[%clk 0:00:02]}  g2+ {[%clk 0:00:05]} 58. Kxh2 {[%clk 0:00:01]}  Kf2 {[%clk 0:00:05]} 59. Kh3 {[%clk 0:00:01]}  g1=Q {[%clk 0:00:05]} 60. Kh4 {[%clk 0:00:01]}  Qh1+ {[%clk 0:00:05]} 61. Kg5 {[%clk 0:00:02]}  Qd5+ {[%clk 0:00:06]} 62. Be5 {[%clk 0:00:02]}  Ke3 {[%clk 0:00:06]} 63. Kf5 {[%clk 0:00:02]}  Kd3 {[%clk 0:00:07]} 64. a4 {[%clk 0:00:02]}  Kc4 {[%clk 0:00:07]} 65. Kf6 {[%clk 0:00:02]}  Kb3 {[%clk 0:00:08]} 66. Ke7 {[%clk 0:00:03]}  Kxa4 {[%clk 0:00:09]} 67. Bd6 {[%clk 0:00:03]}  Kb3 {[%clk 0:00:09]} 68. Bc5 {[%clk 0:00:04]}  a4 {[%clk 0:00:10]} 69. Kf6 {[%clk 0:00:04]}  a3 {[%clk 0:00:11]} 70. Ke7 {[%clk 0:00:05]}  a2 {[%clk 0:00:11]} 71. Bd6 {[%clk 0:00:06]}  a1=Q {[%clk 0:00:12]} 72. Be5 {[%clk 0:00:07]}  Qaxd4 {[%clk 0:00:12]} 73. Kf6 {[%clk 0:00:08]}  Q4xe5+ {[%clk 0:00:12]} 74. Kg6 {[%clk 0:00:08]}  Qee6+ {[%clk 0:00:11]} 75. Kg7 {[%clk 0:00:08]}  Qdd7+ {[%clk 0:00:12]} 0-1


[Site "https://www.chess.com"]

[Event "Early Titled Tuesday Blitz | February 8 2022"]
[White "Moroni, Luca Jr"]
[Black "Omariev, Maksim"]
[WhiteFideId "865834"]
[BlackFideId "4193423"]
[WhiteElo "2573"]
[BlackElo "2512"]
[Result "0-1"]
[Round "03"]
[TimeControl "180+1"]
[Date "2022.02.08"]
[WhiteClock "0:00:02"]
[BlackClock "0:00:02"]

1. d4 {[%clk 0:03:00]}  d5 {[%clk 0:02:59]} 2. c4 {[%clk 0:02:59]}  c6 {[%clk 0:02:58]} 3. Nc3 {[%clk 0:02:59]}  Nf6 {[%clk 0:02:59]} 4. cxd5 {[%clk 0:02:58]}  cxd5 {[%clk 0:02:58]} 5. Bf4 {[%clk 0:02:59]}  Nc6 {[%clk 0:02:57]} 6. e3 {[%clk 0:02:59]}  a6 {[%clk 0:02:54]} 7. Bd3 {[%clk 0:02:58]}  Bg4 {[%clk 0:02:53]} 8. Qb3 {[%clk 0:02:55]}  Na5 {[%clk 0:02:53]} 9. Qa4+ {[%clk 0:02:55]}  b5 {[%clk 0:02:44]} 10. Qc2 {[%clk 0:02:55]}  Rc8 {[%clk 0:02:38]} 11. a3 {[%clk 0:02:50]}  e6 {[%clk 0:02:34]} 12. Nf3 {[%clk 0:02:49]}  Be7 {[%clk 0:02:09]} 13. Ne5 {[%clk 0:02:47]}  Bh5 {[%clk 0:02:08]} 14. O-O {[%clk 0:02:46]}  Nd7 {[%clk 0:02:05]} 15. Rac1 {[%clk 0:02:35]}  Nc4 {[%clk 0:01:55]} 16. a4 {[%clk 0:01:54]}  Ncxe5 {[%clk 0:01:51]} 17. Bxe5 {[%clk 0:01:38]}  Nxe5 {[%clk 0:01:50]} 18. dxe5 {[%clk 0:01:36]}  b4 {[%clk 0:01:51]} 19. Bxa6 {[%clk 0:01:36]}  Rc5 {[%clk 0:01:42]} 20. Bb5+ {[%clk 0:01:30]}  Kf8 {[%clk 0:01:41]} 21. Qb3 {[%clk 0:01:23]}  bxc3 {[%clk 0:01:40]} 22. Rxc3 {[%clk 0:01:24]}  Rxc3 {[%clk 0:01:33]} 23. Qxc3 {[%clk 0:01:23]}  g5 {[%clk 0:01:31]} 24. Rc1 {[%clk 0:01:09]}  Kg7 {[%clk 0:01:31]} 25. h3 {[%clk 0:01:09]}  Qf8 {[%clk 0:01:13]} 26. Qc6 {[%clk 0:00:49]}  Bb4 {[%clk 0:01:11]} 27. Kh2 {[%clk 0:00:43]}  Qb8 {[%clk 0:01:08]} 28. f4 {[%clk 0:00:42]}  Bd2 {[%clk 0:01:03]} 29. Rf1 {[%clk 0:00:38]}  Bxe3 {[%clk 0:01:01]} 30. fxg5 {[%clk 0:00:31]}  Qxe5+ {[%clk 0:01:01]} 31. Kh1 {[%clk 0:00:32]}  Qxb2 {[%clk 0:00:47]} 32. Qc7 {[%clk 0:00:26]}  Bxg5 {[%clk 0:00:37]} 33. Qg3 {[%clk 0:00:23]}  h6 {[%clk 0:00:25]} 34. h4 {[%clk 0:00:24]}  Be2 {[%clk 0:00:19]} 35. Rf2 {[%clk 0:00:12]}  Qb1+ {[%clk 0:00:11]} 36. Kh2 {[%clk 0:00:12]}  Bxb5 {[%clk 0:00:11]} 37. axb5 {[%clk 0:00:13]}  Qxb5 {[%clk 0:00:11]} 38. Qe5+ {[%clk 0:00:12]}  f6 {[%clk 0:00:10]} 39. Qc7+ {[%clk 0:00:10]}  Kg6 {[%clk 0:00:10]} 40. h5+ {[%clk 0:00:09]}  Kxh5 {[%clk 0:00:06]} 41. Qf7+ {[%clk 0:00:08]}  Kg4 {[%clk 0:00:04]} 42. Qxe6+ {[%clk 0:00:08]}  Kh5 {[%clk 0:00:03]} 43. Qf7+ {[%clk 0:00:08]}  Kg4 {[%clk 0:00:03]} 44. Rf3 {[%clk 0:00:02]}  Qb8+ {[%clk 0:00:03]} 45. g3 {[%clk 0:00:02]}  Qe5 {[%clk 0:00:02]} 0-1


[Site "https://www.chess.com"]

[Event "Early Titled Tuesday Blitz | February 8 2022"]
[White "Mosutha, Thuso"]
[Black "Alghamdi, Ahmed M"]
[WhiteFideId "11302550"]
[BlackFideId "21500150"]
[WhiteElo "2028"]
[BlackElo "2110"]
[Result "1-0"]
[Round "03"]
[TimeControl "180+1"]
[Date "2022.02.08"]
[WhiteClock "0:00:02"]
[BlackClock "0:00:02"]

1. d4 {[%clk 0:03:00]}  Nf6 {[%clk 0:02:59]} 2. c4 {[%clk 0:03:01]}  g6 {[%clk 0:02:59]} 3. Nf3 {[%clk 0:03:01]}  Bg7 {[%clk 0:02:59]} 4. g3 {[%clk 0:03:01]}  O-O {[%clk 0:02:59]} 5. Bg2 {[%clk 0:03:02]}  d6 {[%clk 0:02:59]} 6. O-O {[%clk 0:03:02]}  Nc6 {[%clk 0:02:59]} 7. d5 {[%clk 0:03:01]}  Na5 {[%clk 0:02:45]} 8. Qa4 {[%clk 0:02:49]}  c5 {[%clk 0:02:41]} 9. Bd2 {[%clk 0:02:42]}  b6 {[%clk 0:02:36]} 10. Bxa5 {[%clk 0:02:41]}  bxa5 {[%clk 0:02:35]} 11. Nc3 {[%clk 0:02:41]}  Nd7 {[%clk 0:02:28]} 12. Qc2 {[%clk 0:02:39]}  Rb8 {[%clk 0:02:27]} 13. b3 {[%clk 0:02:39]}  a4 {[%clk 0:02:23]} 14. Rab1 {[%clk 0:02:38]}  axb3 {[%clk 0:02:21]} 15. axb3 {[%clk 0:02:39]}  a6 {[%clk 0:02:13]} 16. Rfc1 {[%clk 0:02:38]}  Nf6 {[%clk 0:02:08]} 17. e4 {[%clk 0:02:37]}  Bd7 {[%clk 0:02:05]} 18. Nd2 {[%clk 0:02:36]}  Qc8 {[%clk 0:02:02]} 19. Ra1 {[%clk 0:02:34]}  e6 {[%clk 0:01:50]} 20. Ra5 {[%clk 0:02:18]}  exd5 {[%clk 0:01:49]} 21. exd5 {[%clk 0:02:16]}  Bh6 {[%clk 0:01:41]} 22. Rca1 {[%clk 0:02:15]}  Bf5 {[%clk 0:01:41]} 23. Nde4 {[%clk 0:02:10]}  Nxe4 {[%clk 0:01:38]} 24. Bxe4 {[%clk 0:02:10]}  Bg7 {[%clk 0:01:29]} 25. Rc1 {[%clk 0:01:53]}  Bd7 {[%clk 0:01:13]} 26. Qa2 {[%clk 0:01:44]}  h5 {[%clk 0:00:50]} 27. Ne2 {[%clk 0:01:16]}  Qe8 {[%clk 0:00:38]} 28. Bd3 {[%clk 0:01:12]}  Bc8 {[%clk 0:00:38]} 29. Qc2 {[%clk 0:01:02]}  Qe7 {[%clk 0:00:34]} 30. Ra2 {[%clk 0:00:52]}  h4 {[%clk 0:00:33]} 31. Qd2 {[%clk 0:00:38]}  hxg3 {[%clk 0:00:30]} 32. hxg3 {[%clk 0:00:38]}  Qe5 {[%clk 0:00:27]} 33. Re1 {[%clk 0:00:32]}  Rxb3 {[%clk 0:00:22]} 34. Nc1 {[%clk 0:00:28]}  Qc3 {[%clk 0:00:18]} 35. Nxb3 {[%clk 0:00:27]}  Qxb3 {[%clk 0:00:18]} 36. Rc2 {[%clk 0:00:20]}  a5 {[%clk 0:00:17]} 37. Rcc1 {[%clk 0:00:15]}  Qb4 {[%clk 0:00:15]} 38. Qc2 {[%clk 0:00:10]}  a4 {[%clk 0:00:14]} 39. Rb1 {[%clk 0:00:11]}  Qa5 {[%clk 0:00:14]} 40. Re2 {[%clk 0:00:07]}  Bd7 {[%clk 0:00:13]} 41. Re7 {[%clk 0:00:07]}  Rd8 {[%clk 0:00:11]} 42. Bxg6 {[%clk 0:00:07]}  Be8 {[%clk 0:00:09]} 43. Bf5 {[%clk 0:00:03]}  Kf8 {[%clk 0:00:09]} 44. Rbe1 {[%clk 0:00:02]}  a3 {[%clk 0:00:09]} 45. R7e3 {[%clk 0:00:02]}  a2 {[%clk 0:00:09]} 46. Qe2 {[%clk 0:00:02]}  a1=Q {[%clk 0:00:07]} 47. Rxa1 {[%clk 0:00:02]}  Qxa1+ {[%clk 0:00:06]} 48. Kg2 {[%clk 0:00:03]}  Be5 {[%clk 0:00:06]} 49. Qh5 {[%clk 0:00:03]}  Qb2 {[%clk 0:00:05]} 50. Qh6+ {[%clk 0:00:01]}  Bg7 {[%clk 0:00:04]} 51. Qg5 {[%clk 0:00:01]}  Qf6 {[%clk 0:00:04]} 52. Qg4 {[%clk 0:00:02]}  Bh6 {[%clk 0:00:03]} 53. Rf3 {[%clk 0:00:01]}  Qg5 {[%clk 0:00:03]} 54. Qe4 {[%clk 0:00:02]}  Qe7 {[%clk 0:00:02]} 55. Qg4 {[%clk 0:00:01]}  Qg5 {[%clk 0:00:02]} 56. Qe4 {[%clk 0:00:02]}  Rd7 {[%clk 0:00:03]} 57. Bxd7 {[%clk 0:00:02]}  Bxd7 {[%clk 0:00:03]} 58. Qd3 {[%clk 0:00:01]}  Bg4 {[%clk 0:00:02]} 59. Rf4 {[%clk 0:00:02]}  Qg6 {[%clk 0:00:02]} 60. Re4 {[%clk 0:00:02]} 1-0


[Site "https://www.chess.com"]

[Event "Early Titled Tuesday Blitz | February 8 2022"]
[White "Namitbir Singh Walia"]
[Black "Gabdrakhmanov, Azat"]
[WhiteFideId "35071068"]
[BlackFideId "34189197"]
[WhiteElo "1479"]
[BlackElo "2279"]
[Result "0-1"]
[Round "03"]
[TimeControl "180+1"]
[Date "2022.02.08"]
[WhiteClock "0:00:05"]
[BlackClock "0:00:19"]

1. d4 {[%clk 0:03:00]}  Nf6 {[%clk 0:03:00]} 2. c4 {[%clk 0:02:58]}  g6 {[%clk 0:03:00]} 3. g3 {[%clk 0:02:56]}  Bg7 {[%clk 0:03:01]} 4. Bg2 {[%clk 0:02:56]}  O-O {[%clk 0:03:02]} 5. Nf3 {[%clk 0:02:56]}  d6 {[%clk 0:03:02]} 6. O-O {[%clk 0:02:55]}  c5 {[%clk 0:03:03]} 7. d5 {[%clk 0:02:49]}  Na6 {[%clk 0:03:01]} 8. Nc3 {[%clk 0:02:49]}  Nc7 {[%clk 0:03:01]} 9. e4 {[%clk 0:02:46]}  a6 {[%clk 0:03:01]} 10. a4 {[%clk 0:02:40]}  Rb8 {[%clk 0:03:01]} 11. a5 {[%clk 0:02:39]}  b5 {[%clk 0:03:00]} 12. axb6 {[%clk 0:02:38]}  Rxb6 {[%clk 0:03:00]} 13. h3 {[%clk 0:02:37]}  Rb4 {[%clk 0:02:59]} 14. Qd3 {[%clk 0:02:31]}  e6 {[%clk 0:02:58]} 15. Re1 {[%clk 0:02:25]}  exd5 {[%clk 0:02:57]} 16. cxd5 {[%clk 0:02:26]}  Re8 {[%clk 0:02:50]} 17. Nd2 {[%clk 0:02:16]}  Rd4 {[%clk 0:02:40]} 18. Qc2 {[%clk 0:02:09]}  Nfxd5 {[%clk 0:02:29]} 19. Nf3 {[%clk 0:01:51]}  Nb4 {[%clk 0:02:11]} 20. Qb3 {[%clk 0:01:34]}  Rd3 {[%clk 0:02:09]} 21. Bg5 {[%clk 0:01:25]}  Bf6 {[%clk 0:01:47]} 22. Be3 {[%clk 0:01:15]}  Be6 {[%clk 0:01:35]} 23. Qa4 {[%clk 0:01:07]}  Bd7 {[%clk 0:01:22]} 24. Qb3 {[%clk 0:01:01]}  Nb5 {[%clk 0:01:10]} 25. Rec1 {[%clk 0:00:37]}  a5 {[%clk 0:00:58]} 26. Bf1 {[%clk 0:00:19]}  Nd4 {[%clk 0:00:42]} 27. Nxd4 {[%clk 0:00:11]}  cxd4 {[%clk 0:00:43]} 28. Bxd3 {[%clk 0:00:11]}  dxc3 {[%clk 0:00:36]} 29. Rxc3 {[%clk 0:00:07]}  Bxc3 {[%clk 0:00:31]} 30. Qxc3 {[%clk 0:00:08]}  Nxd3 {[%clk 0:00:29]} 31. Qxd3 {[%clk 0:00:08]}  Bxh3 {[%clk 0:00:29]} 32. Bf4 {[%clk 0:00:07]}  Qc8 {[%clk 0:00:21]} 33. Qxd6 {[%clk 0:00:06]}  Qg4 {[%clk 0:00:20]} 34. e5 {[%clk 0:00:05]}  Qf3 {[%clk 0:00:19]} 0-1


[Site "https://www.chess.com"]

[Event "Early Titled Tuesday Blitz | February 8 2022"]
[White "Navalgund, Niranjan"]
[Black "Bommini, Mounika Akshaya"]
[WhiteFideId "5030854"]
[BlackFideId "25019872"]
[WhiteElo "2290"]
[BlackElo "1671"]
[Result "1-0"]
[Round "03"]
[TimeControl "180+1"]
[Date "2022.02.08"]
[WhiteClock "0:00:18"]
[BlackClock "0:00:02"]

1. e4 {[%clk 0:02:55]}  e5 {[%clk 0:02:55]} 2. Nf3 {[%clk 0:02:55]}  Nc6 {[%clk 0:02:55]} 3. Nc3 {[%clk 0:02:55]}  g6 {[%clk 0:02:51]} 4. h4 {[%clk 0:02:54]}  h6 {[%clk 0:02:43]} 5. d4 {[%clk 0:02:36]}  exd4 {[%clk 0:02:39]} 6. Nd5 {[%clk 0:02:35]}  Bg7 {[%clk 0:02:31]} 7. Bf4 {[%clk 0:02:33]}  d6 {[%clk 0:02:30]} 8. Bb5 {[%clk 0:02:32]}  Ne7 {[%clk 0:02:25]} 9. Nxd4 {[%clk 0:02:30]}  Bd7 {[%clk 0:02:11]} 10. Bxc6 {[%clk 0:02:11]}  bxc6 {[%clk 0:01:55]} 11. Nxe7 {[%clk 0:01:46]}  Qxe7 {[%clk 0:01:54]} 12. Qd3 {[%clk 0:01:43]}  O-O {[%clk 0:01:43]} 13. O-O-O {[%clk 0:01:41]}  c5 {[%clk 0:01:42]} 14. Ne2 {[%clk 0:01:30]}  Rab8 {[%clk 0:01:35]} 15. c3 {[%clk 0:01:08]}  a5 {[%clk 0:01:28]} 16. Qe3 {[%clk 0:00:58]}  Kh7 {[%clk 0:01:25]} 17. Rd2 {[%clk 0:00:52]}  Be6 {[%clk 0:01:24]} 18. a3 {[%clk 0:00:50]}  Rb3 {[%clk 0:01:20]} 19. Kd1 {[%clk 0:00:43]}  Rfb8 {[%clk 0:01:19]} 20. e5 {[%clk 0:00:40]}  Rxb2 {[%clk 0:01:15]} 21. exd6 {[%clk 0:00:39]}  Rxd2+ {[%clk 0:01:07]} 22. Kxd2 {[%clk 0:00:31]}  cxd6 {[%clk 0:01:05]} 23. Rc1 {[%clk 0:00:31]}  Qb7 {[%clk 0:00:56]} 24. f3 {[%clk 0:00:25]}  Qb2+ {[%clk 0:00:49]} 25. Rc2 {[%clk 0:00:24]}  Qxa3 {[%clk 0:00:49]} 26. Ke1 {[%clk 0:00:24]}  Rb1+ {[%clk 0:00:46]} 27. Kf2 {[%clk 0:00:24]}  d5 {[%clk 0:00:44]} 28. Be5 {[%clk 0:00:22]}  Bf5 {[%clk 0:00:37]} 29. Bxg7 {[%clk 0:00:21]}  Kxg7 {[%clk 0:00:21]} 30. Qe5+ {[%clk 0:00:20]}  Kh7 {[%clk 0:00:21]} 31. Qf6 {[%clk 0:00:19]}  Be6 {[%clk 0:00:20]} 32. Nf4 {[%clk 0:00:17]}  Qb3 {[%clk 0:00:18]} 33. Re2 {[%clk 0:00:16]}  d4 {[%clk 0:00:08]} 34. Rxe6 {[%clk 0:00:16]}  Qc2+ {[%clk 0:00:04]} 35. Kg3 {[%clk 0:00:15]}  fxe6 {[%clk 0:00:04]} 36. Qf7+ {[%clk 0:00:16]}  Kh8 {[%clk 0:00:02]} 37. Qf8+ {[%clk 0:00:17]}  Kh7 {[%clk 0:00:02]} 38. Qf7+ {[%clk 0:00:17]}  Kh8 {[%clk 0:00:02]} 39. Nxg6+ {[%clk 0:00:18]} 1-0


[Site "https://www.chess.com"]

[Event "Early Titled Tuesday Blitz | February 8 2022"]
[White "Nepomniachtchi, Ian"]
[Black "Costachi, Mihnea"]
[WhiteFideId "4168119"]
[BlackFideId "1217518"]
[WhiteElo "2740"]
[BlackElo "2464"]
[Result "1-0"]
[Round "03"]
[TimeControl "180+1"]
[Date "2022.02.08"]
[WhiteClock "0:01:18"]
[BlackClock "0:00:02"]

1. e4 {[%clk 0:03:00]}  e5 {[%clk 0:02:59]} 2. f4 {[%clk 0:02:59]}  Bc5 {[%clk 0:02:58]} 3. Nf3 {[%clk 0:02:58]}  d6 {[%clk 0:02:58]} 4. c3 {[%clk 0:02:58]}  Nf6 {[%clk 0:02:57]} 5. d4 {[%clk 0:02:58]}  exd4 {[%clk 0:02:58]} 6. cxd4 {[%clk 0:02:59]}  Bb6 {[%clk 0:02:59]} 7. Nc3 {[%clk 0:02:58]}  O-O {[%clk 0:02:59]} 8. e5 {[%clk 0:02:53]}  dxe5 {[%clk 0:02:59]} 9. fxe5 {[%clk 0:02:53]}  Nd5 {[%clk 0:02:57]} 10. Bc4 {[%clk 0:02:52]}  Be6 {[%clk 0:02:52]} 11. Qb3 {[%clk 0:02:50]}  c6 {[%clk 0:02:48]} 12. O-O {[%clk 0:02:49]}  h6 {[%clk 0:02:41]} 13. Kh1 {[%clk 0:02:48]}  Na6 {[%clk 0:02:39]} 14. Ne4 {[%clk 0:02:47]}  Nac7 {[%clk 0:02:29]} 15. a3 {[%clk 0:02:41]}  Qe7 {[%clk 0:02:28]} 16. Qc2 {[%clk 0:02:31]}  f5 {[%clk 0:02:13]} 17. Nd6 {[%clk 0:02:08]}  Ne8 {[%clk 0:02:08]} 18. Bxd5 {[%clk 0:01:56]}  Bxd5 {[%clk 0:01:52]} 19. Nxf5 {[%clk 0:01:55]}  Qe6 {[%clk 0:01:52]} 20. N3h4 {[%clk 0:01:47]}  Bxd4 {[%clk 0:01:31]} 21. Bxh6 {[%clk 0:01:46]}  Bxe5 {[%clk 0:01:00]} 22. Rae1 {[%clk 0:01:45]}  gxh6 {[%clk 0:00:50]} 23. Rxe5 {[%clk 0:01:44]}  Qxe5 {[%clk 0:00:23]} 24. Nxh6+ {[%clk 0:01:44]}  Kh8 {[%clk 0:00:24]} 25. Rxf8+ {[%clk 0:01:43]}  Kg7 {[%clk 0:00:24]} 26. Rf1 {[%clk 0:01:42]}  Qg5 {[%clk 0:00:18]} 27. N6f5+ {[%clk 0:01:26]}  Kg8 {[%clk 0:00:12]} 28. Nf3 {[%clk 0:01:24]}  Qf6 {[%clk 0:00:04]} 29. Re1 {[%clk 0:01:21]}  Ng7 {[%clk 0:00:03]} 30. Ne7+ {[%clk 0:01:21]}  Kh8 {[%clk 0:00:02]} 31. Ne5 {[%clk 0:01:18]} 1-0


[Site "https://www.chess.com"]